[Event "SixDays Budapest January IM-B 2025"]
[Site "Budapest"]
[Date "2025.01.26"]
[Round "1.1"]
[White "Krizsany, Laszlo"]
[Black "Subramanian, Anusha"]
[Result "1-0"]
[Annotator "TA"]
[ECO "E19"]
[WhiteElo "2303"]
[BlackElo "2044"]
[PlyCount "85"]
[EventDate "2025.01.24"]
[EventType "tourn"]
[EventCountry "HUN"]
[SourceTitle "playchess.com"]
[Source "ChessBase"]
[SourceQuality "1"]
[TimeControl "5400+30"]

{[%evp 19,85,26,15,-2,0,-2,6,0,0,0,27,9,27,9,10,3,27,14,20,-10,17,8,63,52,97,51,87,28,21,15,16,8,14,-8,23,0,0,0,0,10,104,101,142,141,94,95,79,83,77,82,151,150,285,286,374,372,412,389,2089,2204,2606,2558,29983,29984,29984,29985,29985,29986]} 1. d4 {[%emt 0:00:04]} Nf6 {[%emt 0:00:05]} 2. c4 {[%emt 0:00:07]} e6 {[%emt 0:00:05]} 3. Nf3 {[%emt 0:00:11]} b6 {[%emt 0:00:06]} 4. g3 {[%emt 0:00:40]} Bb7 {[%emt 0:00:06]} 5. Bg2 {[%emt 0:00:07]} Be7 {[%emt 0:00:05]} 6. Nc3 {[%emt 0:00:29]} Ne4 {[%emt 0:01:00]} 7. Qc2 {[%emt 0:01:15]} Nxc3 {[%emt 0:04:23]} 8. Qxc3 {[%emt 0:00:06]} O-O {[%emt 0:00:31]} 9. O-O {[%emt 0:00:30]} d6 {[%emt 0:00:32]} 10. Qc2 {[%emt 0:02:48]} f5 {[%emt 0:01:07]} 11. Rd1 {[%emt 0:02:23] E19: Queen's Indian: Old Main Line with 7...Ne4 8 Qc2 Nxc3 8 Qxc3.} Be4 {[%emt 0:07:29]} 12. Qd2 {[%emt 0:09:58]} Bf6 {[%emt 0:03:53]} 13. b3 {[%emt 0:01:28] The position is equal.} Nc6 {[%emt 0:07:29]} 14. Bb2 {[%emt 0:00:42]} Ne7 $146 {[%emt 0:02:28]} (14... e5 15. d5 Nb8 16. Rac1 g5 17. Ne1 Bxg2 18. Nxg2 Nd7 19. b4 Qe7 20. Ba3 e4 {0-1 Weng,X (1776)-Xu,J CHN-ch U20 Shanghai 2024 (7)}) 15. Rac1 {[%emt 0:02:50]} a5 {[%emt 0:07:13]} 16. Bf1 {[%emt 0:13:29]} Ng6 {[%emt 0:08:07]} 17. Ne1 {[%emt 0:03:24]} Bb7 {[%emt 0:09:36]} 18. Bh3 {[%emt 0:03:48]} Qe7 {[%emt 0:03:54][%cal Of5f4]} 19. Nd3 {[%emt 0:06:07]} Be4 {[%emt 0:03:54]} 20. f3 {[%emt 0:04:00]} Bxd3 {[%emt 0:06:40]} ({Better is} 20... Bb7 $11) 21. Qxd3 $14 {[%emt 0:01:21]} f4 {[%emt 0:01:18]} 22. Qe4 {[%emt 0:07:03]} (22. e3 $16) 22... e5 {[%emt 0:02:34]} 23. d5 {[%emt 0:01:27] Black is weak on the light squares} (23. c5 $1 $16) 23... Bg5 $11 {[%emt 0:02:29]} 24. Be6+ {[%emt 0:03:46]} Kh8 {[%emt 0:00:16]} 25. Rc2 {[%emt 0:00:47]} Rf6 {[%emt 0:04:19]} 26. Bc1 {[%emt 0:03:37]} h5 {[%emt 0:04:49]} 27. Kh1 {[%emt 0:04:47]} Nf8 {[%emt 0:01:01]} 28. Bh3 {[%emt 0:01:29]} Qf7 {[%emt 0:10:29]} 29. Rg1 {[%emt 0:01:36]} Nh7 {[%emt 0:01:12]} (29... Bh6 $11 {keeps the balance.}) 30. Be6 $16 {[%emt 0:02:14]} Qe8 {[%emt 0:01:07]} 31. h4 {[%emt 0:07:49]} Bh6 {[%emt 0:01:14]} 32. gxf4 {[%emt 0:00:13]} Bxf4 {[%emt 0:00:48]} 33. e3 {[%emt 0:00:09][%cal Be2e3,Be3f4,Bf4f5][%mdl 32]} Bh6 {[%emt 0:00:36]} 34. f4 {[%emt 0:01:00] White has more active pieces.} exf4 {[%emt 0:02:51]} (34... Nf8 $142) 35. exf4 $40 {[%emt 0:00:05][%mdl 128] White has strong attack.} Nf8 {[%emt 0:00:59]} (35... Qe7 $16 36. Rcg2 Raf8) 36. Bb2 $18 {[%emt 0:01:29]} Rg6 {[%emt 0:01:19]} 37. Rcg2 {[%emt 0:01:59]} Rxg2 {[%emt 0:01:20]} 38. Rxg2 {[%emt 0:00:04] [#] aiming for f5.} ({Not} 38. Qxg2 Qe7 $18) 38... Qe7 $2 {[%emt 0:01:03]} (38... a4 39. f5 axb3) 39. f5 {[%emt 0:00:15][%cal Of5f6] White threatens f6! and mate.} Nh7 {[%emt 0:00:36]} 40. Rg6 {[%emt 0:00:23]} Bd2 {[%emt 0:00:41]} 41. Rxg7 {[%emt 0:00:36] White mates.} Qxg7 {[%emt 0:00:25]} 42. Bxg7+ {[%emt 0:00:07]} Kxg7 {[%emt 0:00:04]} 43. Qd4+ {[%emt 0:00:04] Weighted Error Value: White=0.09 (flawless) /Black=0.69  Mistake:       	White=2     	Black=5      Inaccurate:     	White=1     	Black=7      OK:         	White=12    	Black=5      Best:        	White=2     	Black=2} 1-0

[Event "SixDays Budapest January IM-B 2025"]
[Site "Budapest"]
[Date "2025.01.26"]
[Round "1.2"]
[White "Meers, Hubert"]
[Black "Ongut, Tamas Gunes"]
[Result "1/2-1/2"]
[Annotator "TA"]
[ECO "B59"]
[WhiteElo "2198"]
[BlackElo "2262"]
[PlyCount "41"]
[EventDate "2025.01.24"]
[EventType "tourn"]
[EventCountry "HUN"]
[SourceTitle "playchess.com"]
[Source "ChessBase"]
[SourceQuality "1"]
[TimeControl "5400+30"]

{[%evp 18,41,16,0,0,0,0,0,0,-9,-15,-14,-9,-9,-15,-18,19,17,18,0,0,0,0,0,0,0]} 1. e4 {[%emt 0:00:02]} c5 {[%emt 0:00:09]} 2. Nf3 {[%emt 0:00:03]} Nc6 {[%emt 0:00:07]} 3. d4 {[%emt 0:02:14]} cxd4 {[%emt 0:00:22]} 4. Nxd4 {[%emt 0:00:02]} Nf6 {[%emt 0:00:13]} 5. Nc3 {[%emt 0:00:03]} d6 {[%emt 0:00:07]} 6. Be2 {[%emt 0:00:21]} e5 {[%emt 0:00:16]} 7. Nb3 {[%emt 0:02:37]} Be7 {[%emt 0:00:11]} 8. O-O {[%emt 0:00:03]} O-O {[%emt 0:00:08]} 9. Be3 {[%emt 0:03:20]} Be6 {[%emt 0:00:18]} 10. Qd2 {[%emt 0:02:24] The position is equal.} d5 {[%emt 0:01:48] B59: Classical Sicilian: 6 Be2 e5 7 Nb3.} 11. exd5 {[%emt 0:00:06]} Nxd5 {[%emt 0:00:06]} 12. Nxd5 {[%emt 0:00:18]} Qxd5 {[%emt 0:00:43]} 13. Rfd1 {[%emt 0:04:20]} Qxd2 {[%emt 0:01:01]} 14. Rxd2 {[%emt 0:00:08]} Rfd8 {[%emt 0:00:18]} 15. Rad1 {[%emt 0:03:25]} Rxd2 {[%emt 0:03:52]} 16. Rxd2 {[%emt 0:02:55]} Rd8 {[%emt 0:00:56]} 17. Rxd8+ {[%emt 0:02:12]} Bxd8 {[%emt 0:00:09]} 18. Bf3 $146 {[%emt 0:01:53]} (18. Nc5 Bc8 19. c3 Be7 20. Bc4 Kf8 21. Kf1 b6 22. Nb3 Bd6 23. h3 Ke7 24. Ke2 {½-½ Pokorny,M (2196)-Herejk,P (2194) CZE-chT2A 0910 2009 (9.3)}) 18... Bb6 {[%emt 0:05:16]} 19. Bxb6 {[%emt 0:01:50]} axb6 {[%emt 0:00:07]} 20. c3 {[%emt 0:03:57]} Kf8 {[%emt 0:05:17]} 21. Kf1 {[%emt 0:12:37] Not much happened in this game.   Weighted Error Value: White=0.05 (flawless) /Black=0.05 (flawless)   Inaccurate:     	---       	Black=1      OK:         	White=4     	Black=3} 1/2-1/2

[Event "SixDays Budapest January IM-B 2025"]
[Site "Budapest"]
[Date "2025.01.26"]
[Round "1.3"]
[White "Senthil Maran K"]
[Black "Varga, Csaba Zoltan"]
[Result "1/2-1/2"]
[Annotator "TA"]
[ECO "A06"]
[WhiteElo "2398"]
[BlackElo "2198"]
[PlyCount "134"]
[EventDate "2025.01.24"]
[EventType "tourn"]
[EventCountry "HUN"]
[SourceTitle "playchess.com"]
[Source "ChessBase"]
[SourceQuality "1"]
[TimeControl "5400+30"]

{[%evp 9,134,18,12,9,27,22,39,27,175,47,56,24,30,16,19,22,43,50,44,0,0,0,12,16,47,41,68,70,134,103,138,125,111,80,104,99,106,62,68,77,186,195,193,177,191,180,178,151,164,154,151,116,115,126,114,102,154,161,171,157,145,95,93,129,140,82,72,32,69,84,153,134,140,8,8,0,0,0,0,0,214,204,594,598,1212,1110,846,732,1961,0,0,0,2976,970,1891,3320,3386,4125,2917,2080,1027,0,0,0,0,0,0,0,0,0,0,0,0,0,0,0,0,0,0,-8,-8,-8,-8,-8,-8,-8,0]} 1. Nf3 {[%emt 0:00:26]} d5 {[%emt 0:03:33]} 2. g3 {[%emt 0:00:08]} b6 {[%emt 0:00:02]} 3. d4 {[%emt 0:01:29]} Bb7 {[%emt 0:00:20]} 4. Bg2 {[%emt 0:01:09]} Nd7 {[%emt 0:00:20]} 5. c4 {[%emt 0:01:12]} dxc4 $146 {[%emt 0:00:11]} (5... e6 6. cxd5 exd5 7. Nc3 Bd6 8. O-O a6 9. e4 {½-½ Behrendt,C (2100)-Khadempour,F (2156) Oberliga Wuerttemberg 1011 2010 (7)}) 6. Na3 {[%emt 0:00:18] A07: Réti Opening: New York and Capablanca Systems.} e5 {[%emt 0:02:48]} 7. Nxc4 {[%emt 0:04:32]} (7. dxe5 Bxa3 8. bxa3 Nxe5 $15) 7... exd4 {[%emt 0:03:02]} 8. O-O {[%emt 0:05:36] White is slightly better.} c5 {[%emt 0:01:36]} (8... Bc5 $11 {and Black stays safe.}) 9. e3 {[%emt 0:01:03]} (9. Qb3 $1 $18 {Hoping for Ng5.} Ndf6 10. Nce5) 9... Ngf6 $14 {[%emt 0:02:43]} 10. exd4 {[%emt 0:00:52]} (10. Qb3 $5) 10... Be7 {[%emt 0:00:14]} 11. Nfe5 {[%emt 0:20:41]} Bxg2 {[%emt 0:00:50]} 12. Kxg2 {[%emt 0:00:16]} Nxe5 {[%emt 0:01:07]} (12... Rc8 {looks sharper.} 13. dxc5 Rxc5 14. Nxd7 Nxd7 15. Nd6+ Bxd6 16. Qxd6 Ne5) 13. dxe5 {[%emt 0:04:24] White has a king side majority} Qd5+ {[%emt 0:00:08]} 14. Qf3 {[%emt 0:06:20]} Qxf3+ {[%emt 0:00:35]} 15. Kxf3 {[%emt 0:00:04]} Nd7 {[%emt 0:01:03] Not much happening anymore} 16. Bf4 {[%emt 0:01:54]} g5 {[%emt 0:00:52][%cal Bg7g5,Bg5g4][%mdl 32]} 17. Be3 $36 {[%emt 0:00:45][%mdl 2048] White has the initiative.} O-O {[%emt 0:04:56]} 18. Rad1 {[%emt 0:03:59]} Rfd8 {[%emt 0:01:41]} (18... Rad8 $14) 19. Rd5 {[%emt 0:02:13]} f6 {[%emt 0:04:11]} 20. exf6 {[%emt 0:05:41]} g4+ {[%emt 0:00:05]} 21. Ke2 {[%emt 0:04:47] White is much more active.} (21. Kxg4 $2 Nxf6+ 22. Kh3 Nxd5 $19 (22... Rxd5 $2 23. a4 $19)) 21... Bxf6 {[%emt 0:03:36]} 22. Rfd1 {[%emt 0:04:41]} Nf8 {[%emt 0:00:13]} 23. Bg5 {[%emt 0:01:33]} Rxd5 {[%emt 0:01:14]} 24. Rxd5 {[%emt 0:00:02]} Kf7 {[%emt 0:04:17]} (24... Bd4 $16) 25. Bxf6 $18 {[%emt 0:01:23]} Kxf6 {[%emt 0:00:08][%mdl 4096] Endgame KRN-KRN} 26. Ne3 {[%emt 0:00:05]} Re8 {[%emt 0:00:27]} 27. Kd3 {[%emt 0:01:17]} Ke6 {[%emt 0:01:10]} 28. Rh5 {[%emt 0:01:38]} Rd8+ {[%emt 0:00:57]} 29. Ke2 {[%emt 0:00:45]} Rd4 {[%emt 0:00:25]} 30. Rg5 {[%emt 0:02:16]} Nd7 {[%emt 0:02:46]} 31. Rxg4 {[%emt 0:00:14]} Rxg4 {[%emt 0:02:47]} 32. Nxg4 $16 {[%emt 0:00:02] KN-KN. White is a pawn up.} c4 {[%emt 0:00:18]} (32... Kd5 33. Ne3+ Kd4 34. Nc2+ Kd5 35. Ne3+) 33. f4 {[%emt 0:01:09]} b5 {[%emt 0:01:03]} 34. Ne3 {[%emt 0:04:33]} Nc5 {[%emt 0:00:20]} 35. Kd2 {[%emt 0:00:31]} ({White should try} 35. Nd1) 35... Ne4+ {[%emt 0:03:22]} 36. Kc2 {[%emt 0:00:16]} h5 {[%emt 0:00:09]} 37. a3 {[%emt 0:02:08]} (37. b3 $142 $1) 37... a6 {[%emt 0:01:35]} 38. Nd1 {[%emt 0:01:24]} Kf5 {[%emt 0:02:57]} 39. Nc3 {[%emt 0:01:46]} Nf6 {[%emt 0:02:22]} ({Black should play} 39... Nd6) 40. Kd2 $1 {[%emt 0:02:30]} Ng4 {[%emt 0:03:57]} 41. h4 {[%emt 0:01:47]} (41. h3 $16 Nf2 42. Ke3) 41... Nf2 $11 {[%emt 0:01:32]} 42. Ke2 {[%emt 0:05:55]} Nd3 {[%emt 0:04:35]} 43. b4 {[%emt 0:00:33]} Nc1+ {[%emt 0:03:05]} (43... Kg4 44. Ne4 $16) 44. Ke3 {[%emt 0:01:00]} Nb3 $2 {[%emt 0:00:51] [#]} (44... Kg4 45. Ke4 (45. Ne4 Nd3 $16) 45... Nd3 (45... Kxg3 $2 46. f5 $18) 46. f5 (46. Ne2 Nf2+ 47. Ke3 Nd1+ 48. Kd2 Nf2 $11) 46... Nf2+ (46... Kxg3 $2 47. f6 $18) 47. Ke5 $14) (44... Nd3 $1 $11) 45. a4 $1 $18 {[%emt 0:03:06]} Na1 $2 {[%emt 0:01:01]} (45... bxa4 {is more resistant.} 46. Nxa4 Nc1 (46... Kg4 $2 47. Nc5 $18)) 46. axb5 {[%emt 0:01:43]} axb5 {[%emt 0:00:05]} 47. Kd4 {[%emt 0:01:10]} Nc2+ {[%emt 0:00:21]} 48. Kc5 {[%emt 0:00:15]} Na3 {[%emt 0:00:44]} 49. Kd4 $2 {[%emt 0:01:48]} (49. Nxb5 $18 Nxb5 50. Kxc4 (50. Kxb5 $2 c3 $19)) 49... Nc2+ $11 {[%emt 0:00:36]} 50. Kc5 $2 {[%emt 0:00:01][%mdl 8192]} (50. Kd5 $11) 50... Na3 $1 $18 {[%emt 0:00:07]} 51. Nxb5 {[%emt 0:01:10]} Nxb5 {[%emt 0:00:10] [#]} 52. Kxc4 $1 {[%emt 0:00:01] KN-KP} (52. Kxb5 $2 {too greedy.} c3 53. Ka6 c2 $19) 52... Nc7 {[%emt 0:02:42]} 53. b5 {[%emt 0:00:54]} Ke6 {[%emt 0:00:31]} 54. Kc5 {[%emt 0:00:39]} Kd7 {[%emt 0:00:21]} 55. f5 $2 {[%emt 0:01:10]} (55. b6 $18 Ne8 56. Kd4) 55... Ke7 $11 {[%emt 0:07:42] The position is equal.} (55... Ne8 $5) 56. b6 Na6+ {[%emt 0:00:10]} 57. Kd5 {[%emt 0:01:01]} Kf6 {[%emt 0:00:06]} 58. Ke4 {[%emt 0:00:17]} Nc5+ $1 {[%emt 0:00:11]} 59. Kf4 {[%emt 0:00:18]} Nd3+ {[%emt 0:00:11]} 60. Ke3 {[%emt 0:00:47]} Nc5 {[%emt 0:00:24]} 61. Kf4 {[%emt 0:00:31]} Nd3+ {[%emt 0:00:28]} 62. Ke3 {[%emt 0:00:38]} Nc5 {[%emt 0:00:09]} 63. Kd4 {[%emt 0:00:36]} Nd7 {[%emt 0:01:01]} 64. Ke4 {[%emt 0:00:32]} Nxb6 {[%emt 0:00:16]} 65. g4 {[%emt 0:00:08]} hxg4 {[%emt 0:00:07][%cal Ob6d5] ( -> ...Nd5!)} (65... Nc4 $5 66. g5+ $8 Kf7 $11) 66. Kf4 {[%emt 0:00:01]} Nd5+ {[%emt 0:00:10]} 67. Kxg4 {[%emt 0:00:06]} Ke5 {Blacks defense is rewarded with a draw.   Weighted Error Value: White=0.30/Black=0.34  Loses game:     	---       	Black=1      Mistake:       	White=4     	Black=6      Inaccurate:     	White=4     	Black=5      OK:         	White=12    	Black=28     Best:        	White=9     	Black=4      Strong:       	White=2     	Black=2} 1/2-1/2

[Event "SixDays Budapest January IM-B 2025"]
[Site "Budapest"]
[Date "2025.01.26"]
[Round "1.4"]
[White "Horvath, David"]
[Black "Vandan Alankar Sawai"]
[Result "0-1"]
[Annotator "TA"]
[ECO "A06"]
[WhiteElo "2299"]
[BlackElo "2177"]
[PlyCount "98"]
[EventDate "2025.01.24"]
[EventType "tourn"]
[EventCountry "HUN"]
[SourceTitle "playchess.com"]
[Source "ChessBase"]
[SourceQuality "1"]
[TimeControl "5400+30"]

{[%evp 9,98,35,56,29,27,25,78,78,81,57,74,50,77,42,89,87,86,84,101,83,93,95,106,99,125,112,108,124,149,144,172,171,204,199,197,139,202,206,291,164,187,188,182,179,154,161,175,108,165,183,141,0,0,0,0,0,0,0,0,-177,-147,-160,-31,-22,0,-135,209,202,214,215,218,180,216,200,209,158,335,306,478,424,552,539,570,506,591,580,505,-681,-674,-835,-808]} 1. Nf3 {[%emt 0:00:04]} d5 {[%emt 0:00:48]} 2. g3 {[%emt 0:00:06]} Nd7 {[%emt 0:01:04]} 3. d4 {[%emt 0:02:21]} Nb6 {[%emt 0:00:14]} 4. Bg2 {[%emt 0:01:41]} Nf6 {[%emt 0:01:28]} 5. O-O {[%emt 0:05:52]} Bf5 {[%emt 0:02:54]} 6. Nbd2 {[%emt 0:02:23] D02: 1 d4 d5 2 Nf3 sidelines, including 2...Nf6 3 g3 and 2...Nf6 3 Bf4.} e6 {[%emt 0:01:14]} 7. Nh4 {[%emt 0:05:23]} Bg6 {[%emt 0:04:44]} (7... Bg4 $11) 8. Nxg6 $16 {[%emt 0:03:18] White is better.} hxg6 {[%emt 0:00:08]} 9. e4 {[%emt 0:00:12]} Be7 $146 {[%emt 0:08:15]} (9... dxe4 10. Nxe4 c6 11. Re1 Be7 12. c3 Nxe4 13. Bxe4 Qd7 14. Bg2 Rd8 15. Qe2 O-O {½-½ Lammens,T (2241)-Groffen,H (2139) NED-chT 2122 2021 (5.9)}) 10. Qe2 {[%emt 0:29:29]} c6 {[%emt 0:02:16]} 11. Rd1 {[%emt 0:05:56]} Qc7 {[%emt 0:00:31]} (11... dxe4 $14 12. Nxe4 Nxe4) 12. c4 {[%emt 0:02:36][%cal Bc2c4,Bc4c5][%mdl 32]} O-O {[%emt 0:04:50]} 13. exd5 {[%emt 0:16:01]} cxd5 {[%emt 0:13:35]} 14. c5 {[%emt 0:00:34]} Nbd7 {[%emt 0:00:09]} 15. b4 {[%emt 0:02:58]} b6 {[%emt 0:00:24]} 16. Nb3 {[%emt 0:02:37]} a5 {[%emt 0:07:57][%cal Ba7a5,Ba5a4][%mdl 32]} 17. Bf4 {[%emt 0:00:24]} Qc8 {[%emt 0:03:39]} 18. a3 {[%emt 0:05:14]} Nh5 {[%emt 0:06:53]} 19. Be3 $36 {[%emt 0:01:45][%mdl 2048] White has strong initiative.} a4 {[%emt 0:11:59]} 20. Nc1 {[%emt 0:04:55]} bxc5 {[%emt 0:00:31]} 21. dxc5 {[%emt 0:00:09]} Ne5 {[%emt 0:00:13]} 22. Bd4 {[%emt 0:02:13]} (22. Nd3 $18 Nc4 23. Bd4) 22... Nc4 {[%emt 0:00:18]} (22... Nc6 $16 23. Bb2 Qb7) 23. Nd3 $18 {[%emt 0:01:57]} Rb8 {[%emt 0:05:56]} (23... Bf6) 24. Bxd5 {[%emt 0:02:26]} (24. Ne5 $142 Nxa3 25. Bh3 (25. Rxa3 Rxb4 26. Raa1 a3 $18)) 24... exd5 {[%emt 0:02:27]} 25. Qxe7 {[%emt 0:00:03]} Nf6 {[%emt 0:06:24][%cal Bh5f6,Bf6e4,Be4g5,Bg5f3][%mdl 32]} 26. Qe2 {[%emt 0:00:43]} (26. Bxf6 $6 Re8 $14) 26... Re8 {[%emt 0:00:07]} 27. Qf3 {[%emt 0:00:44]} Ne4 {[%emt 0:00:08]} 28. Nb2 {[%emt 0:00:39]} (28. Nf4 $1 $18) 28... Ncd2 {[%emt 0:01:36]} (28... Ng5 $16 {keeps fighting.} 29. Qxd5 Nxb2 30. Bxb2 Qg4) 29. Qd3 {[%emt 0:00:25]} Nb3 {[%emt 0:01:43]} 30. Rab1 {[%emt 0:00:46]} (30. Nxa4 $1 $16 Nxa1 31. Rxa1) 30... Ng5 $1 $11 {[%emt 0:00:08] Threatens to win with ...Nxd4.} 31. Be3 {[%emt 0:00:47]} (31. Nxa4 $2 Nxd4 32. Kh1 Ndf3 $19) 31... Nf3+ {[%emt 0:00:16]} 32. Kg2 {[%emt 0:00:08][%cal Od3d5]} Qg4 {[%emt 0:01:11]} 33. Bf4 {[%emt 0:01:27]} Nh4+ {[%emt 0:01:16] Excellent horsemanship.} 34. Kg1 $2 {[%emt 0:00:29] [#]} (34. Kh1 $11 {and White stays safe.} Rbd8 35. Nxa4) 34... Nd4 $1 $19 {[%emt 0:08:25]} 35. Kh1 {[%emt 0:00:04] White is weak on the light squares} (35. Bxb8 $2 Ndf3+ 36. Kh1 Qh3 37. gxh4 Rxb8 $19) 35... Rbd8 {[%emt 0:00:55] Dancing on a razor blade. Black is more active.} (35... Nhf3 $17 36. Qf1 (36. Nxa4 $2 g5 $19) (36. Bxb8 Qh3) 36... Ra8) 36. gxh4 $15 {[%emt 0:01:07]} (36. Qxd4 $2 Qf3+ 37. Kg1 Qg2#) 36... Qxf4 {[%emt 0:00:01]} 37. Qxd4 {[%emt 0:00:20] [#]} (37. Qg3 $1 $11 {remains equal.} Qf6 (37... Qe4+ 38. Qg2 $11) 38. Nd3) 37... Re1+ $3 {[%emt 0:00:09][%mdl 8704] Black attacks} 38. Kg2 $1 $18 {[%emt 0:00:29]} Qxd4 {[%emt 0:00:10]} 39. Rxd4 {[%emt 0:00:07]} Rxb1 {[%emt 0:00:03]} 40. Nxa4 {[%emt 0:00:09][%mdl 4096] Endgame Hoping for Nb6. KRR-KRN} Ra8 {[%emt 0:00:34]} 41. Nc3 {[%emt 0:01:12]} Rc1 {[%emt 0:00:28]} 42. Nb5 {[%emt 0:00:33]} Rc4 $2 {[%emt 0:01:42]} (42... Kf8 $16 43. Rxd5 Rc4) 43. Rxd5 {[%emt 0:00:13]} Rxh4 {[%emt 0:00:06]} (43... f6 $142 44. h3 Kh7) 44. Rd7 {[%emt 0:00:38]} Rc4 {[%emt 0:01:35]} 45. Na7 {[%emt 0:00:48]} Rg4+ {[%emt 0:00:40]} 46. Kf3 {[%emt 0:00:08]} Rc4 {[%emt 0:00:02]} 47. c6 {[%emt 0:00:16]} Kh7 {[%emt 0:00:03] [#]} 48. c7 $4 {[%emt 0:00:49][%mdl 8192]} Rxa7 $19 {[%emt 0:00:06]} 49. c8=Q {[%emt 0:00:20]} Rxa3+ {[%emt 0:00:03] Both players deserved the win here.   Weighted Error Value: White=0.43/Black=0.40  Loses game:     	White=1     	Black=2      Missed win:     	White=1     	---        Mistake:       	White=5     	Black=7      Inaccurate:     	White=1     	Black=2      OK:         	White=13    	Black=12     Best:        	White=6     	Black=2      Strong:       	White=1     	Black=1      Brilliant:      	---       	Black=1} (49... Rxc8 $2 {loses.} 50. Rxa7 Rc3+ 51. Ke2 $18) 0-1

[Event "SixDays Budapest January IM-B 2025"]
[Site "Budapest"]
[Date "2025.01.26"]
[Round "1.5"]
[White "Papp, Bence"]
[Black "Tancsa, Tamas"]
[Result "0-1"]
[Annotator "TA"]
[ECO "E97"]
[WhiteElo "2272"]
[BlackElo "2192"]
[PlyCount "86"]
[EventDate "2025.01.24"]
[EventType "tourn"]
[EventCountry "HUN"]
[SourceTitle "playchess.com"]
[Source "ChessBase"]
[SourceQuality "1"]
[TimeControl "5400+30"]

{[%evp 17,86,28,39,27,27,16,14,9,25,7,10,-6,8,6,6,6,22,20,27,11,15,11,43,-23,-26,-20,-20,-6,-17,-24,16,5,12,13,33,4,0,0,0,1,28,0,4,0,74,84,77,70,149,68,100,73,97,73,73,29,29,24,36,0,16,9,23,24,32,-16,-16,-16,-12,-22,-22]} 1. d4 {[%emt 0:00:05]} Nf6 {[%emt 0:00:11]} 2. c4 {[%emt 0:00:09]} g6 {[%emt 0:00:15]} 3. Nc3 {[%emt 0:00:35]} Bg7 {[%emt 0:00:06]} 4. e4 {[%emt 0:00:15]} d6 {[%emt 0:00:03]} 5. Nf3 {[%emt 0:00:21]} O-O {[%emt 0:00:15]} 6. Be2 {[%emt 0:00:23]} e5 {[%emt 0:00:23]} 7. O-O {[%emt 0:00:13]} Nc6 {[%emt 0:00:12]} 8. d5 {[%emt 0:00:06]} Ne7 {[%emt 0:00:17]} 9. Kh1 {[%emt 0:02:46]} Ne8 {[%emt 0:03:57]} 10. Ng1 {[%emt 0:00:11]} f5 {[%emt 0:03:24]} 11. f3 {[%emt 0:00:21]} f4 {[%emt 0:05:11]} 12. b4 {[%emt 0:01:27]} a5 {[%emt 0:01:19]} 13. bxa5 {[%emt 0:01:39]} Rxa5 {[%emt 0:03:00]} 14. a4 {[%emt 0:00:13]} c5 {[%emt 0:06:14]} 15. Bd2 {[%emt 0:09:28]} g5 {[%emt 0:01:11]} 16. Nh3 {[%emt 0:00:31]} Ng6 {[%emt 0:02:44]} 17. Nf2 {[%emt 0:00:33]} h5 {[%emt 0:00:47]} 18. Nb5 {[%emt 0:21:00]} Ra6 {[%emt 0:00:06]} 19. a5 {[%emt 0:00:06]} Nf6 {[%emt 0:00:11]} 20. Nc3 {[%emt 0:00:43]} ({White should play} 20. h3 $14) 20... Rxa5 $11 {[%emt 0:14:26]} 21. Rxa5 {[%emt 0:00:08]} Qxa5 {[%emt 0:00:09]} 22. Na4 {[%emt 0:01:55]} Qd8 {[%emt 0:01:52][%cal Og5g4]} 23. Qb3 {[%emt 0:00:20]} Nd7 {[%emt 0:29:08]} 24. Ra1 {[%emt 0:01:23][%mdl 1024] White has compensation.} Bh6 {[%emt 0:00:57]} 25. Be1 {[%emt 0:05:33]} Kh7 {[%emt 0:01:49]} 26. Nc3 {[%emt 0:01:10]} Nf6 {[%emt 0:10:20]} 27. Ra8 {[%emt 0:02:14]} Qe7 {[%emt 0:01:34]} 28. Na4 {[%emt 0:04:59][%cal Bc3a4,Ba4b6,Bb6d7][%mdl 32]} g4 {[%emt 0:03:37]} 29. Nb6 {[%emt 0:03:32]} Bd7 {[%emt 0:00:07]} 30. Ra7 {[%emt 0:01:37] Nxd7 would now be deadly.} g3 {[%emt 0:04:37] [#]} (30... gxf3 $11 {remains equal.} 31. gxf3 Rb8) 31. Nxd7 $1 $16 {[%emt 0:01:05]} Nxd7 {[%emt 0:01:28]} 32. Nd1 {[%emt 0:02:41]} (32. Qxb7 gxf2 33. Bxf2 Rf7 $17) 32... gxh2 {[%emt 0:02:17]} ({Of course not} 32... Qh4 33. h3 $16) ({Black should try} 32... h4 $14) 33. Rxb7 {[%emt 0:02:36]} (33. Qxb7 $16 Rf7 34. Qc6 (34. Kxh2 Bg5 $11)) 33... Rg8 $14 {[%emt 0:00:56] Black is weak on the light squares} 34. Bf1 {[%emt 0:01:33][%cal Od1c3]} Rg7 {[%emt 0:00:22]} 35. Qa2 {[%emt 0:06:31][%cal Od1c3]} Bg5 {[%emt 0:01:12][%cal Bh6g5,Bg5h4,Bh4g3][%mdl 32]} 36. Nf2 {[%emt 0:12:48]} Bh4 {[%emt 0:01:02]} 37. Ra7 {[%emt 0:03:15]} Bg3 {[%emt 0:00:18]} 38. Qe2 {[%emt 0:02:52]} Qh4 {[%emt 0:03:00]} 39. Ra6 {[%emt 0:00:54]} Qf6 {[%emt 0:00:17]} 40. Ba5 {[%emt 0:10:08]} Nb8 {[%emt 0:00:14]} 41. Rb6 {[%emt 0:00:17]} (41. Ra8 $14 Rb7 42. Qa2) 41... Ra7 $11 {[%emt 0:00:27] The position is equal.} 42. Rb5 {[%emt 0:02:13]} Nd7 {[%emt 0:00:20]} 43. Nh3 {[%emt 0:00:30]} Kh6 {[%mdl 32768] Weighted Error Value: White=0.15 (very precise) /Black=0.12 (very precise) .  Mistake:       	White=3     	Black=2      Inaccurate:     	White=3     	Black=2      OK:         	White=10    	Black=16     Best:        	White=1     	Black=2      Strong:       	White=1     	---       . Sensor Board Error (Ke4/e5)?} 0-1